Cogmind - Beta 17 @@@ ROGUE MODE // 2026.08.11 @ 17:20:58 Player: Cinder Result: Destroyed by 91-T1F(R) with Subdweller Beam Cannon Performance ------------- Evolutions (0) 0 Regions Visited (2) 400 Robots Destroyed (10) 50 Value Destroyed (318) 318 Prototype IDs (0) 0 Alien Tech Used (0) 0 Bonus (0) 0 TOTAL SCORE: 768 Bonus ------- None Cogmind --------- Core Integrity 0/250 Matter 290/300 Energy 250/250 System Corruption 0% Temperature Warm (150) Movement Rolling (215) Ox9 Location -10/Subcaves Parts ------- > --- POWER (1) -------- Ion Engine > --- PROPULSION (2) --- Wheel > --- UTILITY (2) ------ Huge Storage Unit Hardened Light Armor Plating > --- WEAPON (2) ------- Particle Gun Particle Gun > --- INVENTORY (25) --- Ion Engine Ion Engine Wheel Wheel Heat Sink Heat Sink Improved Heat Sink Large Battery (200) Machine Analyzer Targeting Computer Targeting Computer Targeting Computer Hardened Light Armor Plating Hardened Light Armor Plating Beam Cannon Peak State ------------ > --- POWER ------------ Ion Engine > --- PROPULSION ------- Wheel Wheel > --- UTILITY ---------- Improved Heat Sink Huge Storage Unit > --- WEAPON ----------- Particle Gun Particle Gun > --- INVENTORY -------- Ion Engine Ion Engine Wheel Wheel Targeting Computer Targeting Computer Targeting Computer Hardened Light Armor Plating Hardened Light Armor Plating Hardened Light Armor Plating Hardened Light Armor Plating Particle Gun Particle Gun Beam Cannon [Rating: 13] Favorites ----------- Power Ion Engine Engine Ion Engine Propulsion Wheel Wheel Wheel Utility Huge Storage Unit Device Improved Heat Sink Storage Huge Storage Unit Protection Hardened Light Armor Plating Weapon Particle Gun Energy Gun Particle Gun Ballistic Gun Light Assault Rifle Build | -11 -10 -10 ------- Run | Yrd Mat Sub Slots Evolved . | . . . Power . | . . . Propulsion . | . . . Utility . | . . . Weapon . | . . . Parts Attached 18 | 6 8 4 Power 3 | 1 2 . Engine 3 | 1 2 . Core . | . . . Reactor . | . . . Propulsion 3 | 2 . 1 Treads . | . . . Leg . | . . . Wheel 3 | 2 . 1 Hover . | . . . Flight . | . . . Utility 6 | 1 4 1 Device 1 | . 1 . Storage 2 | 1 1 . Processor . | . . . Hackware . | . . . Protection 3 | . 2 1 Artifact . | . . . Weapon 6 | 2 2 2 Energy Gun 4 | . 2 2 Energy Cannon . | . . . Ballistic Gun 2 | 2 . . Ballistic Cannon . | . . . Launcher . | . . . Special Weapon . | . . . Impact Weapon . | . . . Slashing Weapon . | . . . Piercing Weapon . | . . . Special Melee Weapon . | . . . Unidentified Prototypes . | . . . Parts Lost 5 | . . 5 Power . | . . . Propulsion 2 | . . 2 Utility 1 | . . 1 Weapon 2 | . . 2 Highest Loss Streak 3 | . . 3 To Critical Strikes . | . . . Average Backups 11 | 1 11 16 Power 1 | . 1 2 Propulsion 1 | . 2 2 Utility 6 | . 5 10 Weapon 1 | . 2 1 Tool/Special . | . . . Unused Backups 16 | . 3 13 Power 3 | . 1 2 Propulsion 2 | . . 2 Utility 8 | . . 8 Weapon 3 | . 2 1 Tool/Special . | . . . Average Slot Usage (%) 98 | . 99 98 Engine 14 | . 14 14 Wheel 27 | . 28 27 Device 8 | . 11 . Storage 14 | . 14 14 Protection 4 | . 1 14 Energy Gun 26 | . 25 27 Ballistic Gun 1 | . 2 . Peak Build Rating 13 | 6 13 12 Average Rating 11 | 4 11 11 On Entrance 6 | . 6 12 Avg Prop Armor Cover (%) . | . . . Naked Turns . | . . . Heaviest Build 96 | 10 96 96 Greatest Support 20 | 20 20 20 Greatest Overweight (x) 9 | . 4 9 Average Overweight (x) 2 | . 2 4 Largest Inventory Capacity 25 | 8 25 25 Average Capacity 19 | 7 18 25 Most Carried 17 | 4 17 17 Average Carried 11 | 1 11 16 Final Capacity 25 | 8 25 25 Final Carried 17 | 4 17 15 Class Distribution -------------------- 100% | Mutant Dominant Class ---------------- Mutant | -10/Materials Mutant | -10/Subcaves Resources | -11 -10 -10 ----------- Run | Yrd Mat Sub Matter Collected 385 | 215 150 20 Remotely . | . . . Salvage Created 327 | 18 178 131 Parts 19 | 4 9 6 Haulers Intercepted . | . . . Recyclers Shooed . | . . . Parts Field Recycled . | . . . Retrieved Matter . | . . . Parts Self-Destructed . | . . . Prevented . | . . . Parts Restored . | . . . Kills | -11 -10 -10 ------- Run | Yrd Mat Sub Combat Hostiles Destroyed 7 | . 4 3 Guns 7 | . 4 3 Classes Destroyed 4 | 1 2 1 Tunneler 1 | 1 . . Watcher 2 | . 2 . Grunt 4 | . 4 . Subdweller 3 | . . 3 Best Kill Streak 2 | 1 2 2 Combat Bots Only 2 | . 2 2 Max Kills in Single Turn 1 | 1 1 1 Gunslinging . | . . . Exploded . | . . . Melee . | . . . Uniques/NPCs Destroyed . | . . . Combat | -11 -10 -10 -------- Run | Yrd Mat Sub Hostile Shots Fired 89 | . 55 34 Missed 24 | . 17 7 Hits 65 | . 38 27 Projectile 65 | . 38 27 Critical Strikes 3 | . 2 1 Damage Taken 1026 | . 414 612 Core 252 | . 87 165 Absorbed by Shields . | . . . Core Remaining (%) 100 | 100 . . Volleys Fired 36 | 3 17 16 Largest 2 | 2 2 2 Hottest 130 | 40 130 130 Shots Fired 72 | 6 34 32 Gun 72 | 6 34 32 Cannon . | . . . Launcher . | . . . Special . | . . . Kinetic 6 | 6 . . Thermal 66 | . 34 32 Explosive . | . . . Electromagnetic . | . . . Robot Hit Streak 16 | 2 4 16 Robot Miss Streak 3 | 1 3 1 Penetration Max . | . . . Secondary Targets . | . . . Shots Hit Robots 50 | 4 18 28 Core Hits 16 | 2 7 7 Critical Kills . | . . . Critical Parts Destroyed 1 | 1 . . Critical Strikes 4 | 1 1 2 Burn 3 | . 1 2 Destroy 1 | 1 . . Melee Attacks . | . . . Impact . | . . . Slashing . | . . . Piercing . | . . . Sneak Attacks . | . . . Combat Hostiles . | . . . Follow-up Attacks . | . . . Damage Inflicted 721 | 31 282 408 Guns 721 | 31 282 408 Cannons . | . . . Explosions . | . . . Melee . | . . . Ramming . | . . . Kinetic 31 | 31 . . Thermal 690 | . 282 408 Explosive . | . . . Electromagnetic . | . . . Impact . | . . . Slashing . | . . . Piercing . | . . . Highest Corruption . | . . . Average Corruption . | . . . Corruption Purged . | . . . Corruption Blocked . | . . . Overload Shots . | . . . Overflow Damage . | . . . Projectiles . | . . . Explosions . | . . . Melee . | . . . Knockbacks . | . . . Impact . | . . . Kinetic . | . . . Secondary . | . . . Self-Inflicted Damage . | . . . Shots . | . . . Rammed . | . . . Targets Rammed . | . . . Kicked . | . . . Crushed . | . . . Highest Temperature 366 | . 366 144 Average Temperature 124 | . 162 68 Received Heat Transfer 294 | . 159 135 Effects 3 | . 3 . Energy Bleed 2 | . 2 . Matter Decay 1 | . 1 . Siege Activations . | . . . Martial Activations . | . . . Shielding Activations . | . . . Robots Disrupted . | . . . Combat Hostiles . | . . . Robots Corrupted . | . . . Combat Hostiles . | . . . Parts Fried . | . . . Impact Corruptions . | . . . Robots Melted . | . . . Combat Hostiles . | . . . Parts Melted 3 | . 1 2 Heat Transferred 1850 | . 740 1110 Parts Sabotaged . | . . . Parts Stolen . | . . . Parts Stripped . | . . . Power Chain Reactions . | . . . Alert | -11 -10 -10 ------- Run | Yrd Mat Sub Maximum Alert Level . | . . . Low Security (%) 100 | 100 100 . Level 1 . | . . . Level 2 . | . . . Level 3 . | . . . Level 4 . | . . . Level 5 . | . . . High Security . | . . . Max Security . | . . . Peak Influence 56 | 5 56 . Initial . | . . . Average 10 | . 12 . Influence Increases 194 | 5 189 . Destroy 0b10 Robot/C 80 | . 80 . Destroy 0b10 Robot/NC 15 | 5 10 . Destroy Leader 24 | . 24 . Successful Hack 29 | . 29 . Select Force Hacks 30 | . 30 . Disable Machine 15 | . 15 . Destroy Structure 1 | . 1 . Influence Decreases 194 | 5 165 24 Entered New Map 12 | . . 12 Time Decay 180 | 5 165 10 Lost Part 2 | . . 2 Squads Dispatched 3 | . 3 . Investigation 1 | . 1 . Extermination . | . . . Reinforcement 2 | . 2 . Assault . | . . . Garrison . | . . . Intercept . | . . . Searches Triggered . | . . . Construction Impeded . | . . . Haulers Reinforced . | . . . Active Scanning Responses . | . . . Cargo Convoy Interrupts . | . . . Stealth | -11 -10 -10 --------- Run | Yrd Mat Sub Distress Signals . | . . . Communications Jammed . | . . . Distress Signals . | . . . Times Spotted 20 | . 16 4 Peak Tracking Total 8 | . 8 2 Tactical Retreats . | . . . Traps | -11 -10 -10 ------- Run | Yrd Mat Sub Traps Triggered . | . . . Indirectly . | . . . Trap Hack Attempts . | . . . Triggered . | . . . Disarmed . | . . . Reprogrammed . | . . . Reused . | . . . Traps Extracted . | . . . Installed . | . . . Triggered . | . . . Machines | -11 -10 -10 ---------- Run | Yrd Mat Sub Machines Disabled 1 | . 1 . Max in Single Turn 1 | . 1 . Machines Repaired . | . . . Machines Dismantled . | . . . Machines Sabotaged . | . . . Overloaded Fab Kills . | . . . Hacking | -11 -10 -10 --------- Run | Yrd Mat Sub Machines Accessed 5 | . 5 . Terminals 4 | . 4 . Fabricators . | . . . Repair Stations . | . . . Recycling Units 1 | . 1 . Scanalyzers . | . . . Garrison Access . | . . . Total Hacks 8 | . 8 . Successful 5 | . 5 . Failed 3 | . 3 . Catastrophic . | . . . Database Lockouts . | . . . Manual 7 | . 7 . Terminals 7 | . 7 . Fabricators . | . . . Repair Stations . | . . . Recycling Units 1 | . 1 . Scanalyzers . | . . . Garrison Access . | . . . Terminal Hacks 1 | . 1 . Emergency Access Points 1 | . 1 . Fabricator Hacks . | . . . Repair Station Hacks . | . . . Recycling Unit Hacks . | . . . Scanalyzer . | . . . Garrison Access Hacks . | . . . Unauthorized Hacks 4 | . 4 . Terminals 3 | . 3 . Botnet 3 | . 3 . Fabricators . | . . . Repair Stations . | . . . Recycling Units 1 | . 1 . Tunnel 1 | . 1 . Scanalyzers . | . . . Garrison Access . | . . . Data Cores Recovered . | . . . Used . | . . . Hacking Detections 4 | . 4 . Full Trace Events . | . . . Feedback Events . | . . . Feedback Blocked . | . . . Robot Schematics Acquired . | . . . Robots Built . | . . . Authchips . | . . . Time . | . . . Total Robot Build Rating . | . . . Part Schematics Acquired . | . . . Parts Built . | . . . Authchips . | . . . Time . | . . . Total Part Build Rating . | . . . Part Studies Acquired . | . . . Parts Repaired . | . . . Time . | . . . Parts Recycled . | . . . Recycled Matter . | . . . Retrieved Matter . | . . . Retrieved Components . | . . . Parts Scanalyzed . | . . . Part Schematics Acquired . | . . . Parts Damaged . | . . . Bothacking | -11 -10 -10 ------------ Run | Yrd Mat Sub Used RIF Installer . | . . . Robots Hacked . | . . . Non-combat . | . . . Combat . | . . . Robot Hacks Applied . | . . . Relay Couplers Released . | . . . Fabnet Peak Effective % . | . . . Robots Rewired . | . . . Allies Hacked . | . . . Hacks Repelled . | . . . Allies | -11 -10 -10 -------- Run | Yrd Mat Sub Total Allies . | . . . Largest Group . | . . . Highest-Rated Group . | . . . Highest-Rated Ally . | . . . Total Orders . | . . . Ally Attacks . | . . . Total Damage . | . . . Kills . | . . . Allies Corrupted . | . . . Allies Melted . | . . . Intel | -11 -10 -10 ------- Run | Yrd Mat Sub Active Infowar (turns) . | . . . Robot Analysis Total . | . . . Derelict Logs Recovered . | . . . Drone Launches . | . . . Drone Recoveries . | . . . Exploration | -11 -10 -10 ------------- Run | Yrd Mat Sub Turns Passed 837 | 68 597 172 Spaces Moved 566 | 60 435 71 Core 3 | 3 . . Treads . | . . . Legs . | . . . Wheels 563 | 57 435 71 Hover . | . . . Flight . | . . . Fastest Speed 50 | 50 80 140 Average Speed 114 | 78 115 142 Slowest Speed 215 | 80 140 215 Overloaded Moves . | . . . Propulsion Burnouts . | . . . Robots Hopped . | . . . Potential Cave-ins . | . . . Cave-ins Triggered . | . . . Exploration Rate (%) 20 | 3 51 6 Regions Visited 2 Branch Regions 1 Pre-discovered Areas 1 | . 1 . Known Exits Taken . | . . . Unknown Exits Taken 2 | 1 1 . Scrap Searched . | . . . Spaces Dug . | . . . Terrain Destroyed . | . . . Melee . | . . . Projectile . | . . . AOE . | . . . Terrain Rammed . | . . . Walls Destroyed . | . . . Machines Disabled . | . . . Actions | -11 -10 -10 --------- Run | Yrd Mat Sub Total 680 | 72 498 110 Wait 31 | . 14 17 Move 564 | 59 434 71 Hop . | . . . Pick Up 23 | 4 17 2 Fast Attach 9 | 6 3 . Attach 4 | . . 4 Detach . | . . . Swap 5 | . 5 . Drop 8 | . 8 . Fire 36 | 3 17 16 Melee . | . . . Ram . | . . . Kick . | . . . Crush . | . . . Escape Stasis . | . . . Rewire . | . . . Trap . | . . . Miscellaneous . | . . . Route ------- -11/Scrapyard -10/Materials (discovered 2 exits: [*Mat] / [*Sub]) -10/Subcaves History --------- Turn | Location | Event 18 | -11/Scrapyard | Discovered new exit (range 16) 69 | -11/Scrapyard | Entered Materials 304 | -10/Materials | Build established: Mutant 632 | -10/Materials | Discovered new exit (range 14) 655 | -10/Materials | Discovered new exit (range 8) 666 | -10/Materials | Entered Subcaves 667 | -10/Subcaves | Approached by a straggling Scientist 717 | -10/Subcaves | Core integrity fell below 50% 835 | -10/Subcaves | Core integrity fell below 20% 838 | -10/Subcaves | Destroyed by 91-T1F(R) with Subdweller Beam Cannon Last Messages --------------- 00722_ Subatomizers dissect the Disposable Heat Sink. 00726_ XK-0Q4(R) affixes Scrap Shield Fragment to Scrap Shield. 00727_ XK-0Q4(R) destroyed. 00733_ Acquired 20 matter. 00737_ Subatomizers dissect the Disposable Heat Sink. 00738_ Acquired Wheel. 00742_ Acquired Machine Analyzer. 00758_ Subatomizers dissect the Disposable Heat Sink. 00802_ RW-SYT(u) builds Twisted Machinery. 00813_ Critical hit (Destroy). 00816_ Hrd. Light Armor Plating destroyed. 00818_ 91-T1F(R) heat spikes uncontrollably. 00818_ 91-T1F(R) overheating. 00819_ Wheel destroyed. 00823_ Subatomizers dissect the Sub. Machine Gun. 00826_ 0A-ETV(R) suffers critical hit (Burn). 00832_ Wheel destroyed. 00835_ 0A-ETV(R) suffers critical hit (Burn). 00835_ Sub. Optics melted. 00835_ 0A-ETV(R) destroyed. Map ----- +----------------------------------------------------+ | ?????????????????????????????????????????????????? | | ?????????????????????????????????????????????????? | | ???????????????????????????????"""???????????????? | | ??????????????????????????????""""""?????????????? | | ?????????????????????????????#"""""#?????????????? | | ?????????????????????????????#"""""####??????????? | | ????????????????????????????##""""""" #??????????? | | ????????????????????????????#""" #???????????? | | ?????????????????????????????"" #???????????? | | ??????????????????????????????# #???????????? | | ??????????????????????????????# #???????????? | | ??????????????????????????????## ""#???????????? | | ???????????????????????????###### " #???????????? | | ??????????????????????????##" ### " ##??????????? | | ???????????????????????#### ## """#??????????? | | ??????????????????????## #??????????? | | ?????????????????###?## ##??????????? | | ?????????????????# ## ## #???????????? | | ?????????????????# #### #???????????? | | ?????????????????# #??## #???????????? | | ?????????????????## ## #??# ##??????????? | | ??????????????????# ## #?## #??????????? | | ??????????????# #" "## #?# %##??????????? | | ?????????"" ## ## ####*!#???????????? | | ????????#" ####%* &%#???????????? | | ????????# ## R @ &[%#???????????? | | ???????? """"#?# # # # &*#???????????? | | ??????????"????## ## ### ##???????????? | | ????????????????#" ### ###????????????? | | ????????????????"""" ### #??????????????? | | ???????????????# "" ## ##?# ##?????????????? | | ???????????????#? #?## #??## #?????????????? | | ???????????????? ???# #???# #?????????????? | | ??????????????? ????# #??## #?????????????? | | ??????????????? ?????# ??## ##????????????? | | ?????????????? ?????? ##??# #????????????? | | ?????????????? ??????? ????# ##????????????? | | ??????????????????????? ????#### ##?????????????? | | ??????????????????????? ???????# #??????????????? | | ???????????????????????????????####??????????????? | | ?????????????????????????????????????????????????? | | ?????????????????????????????????????????????????? | | ?????????????????????????????????????????????????? | | ?????????????????????????????????????????????????? | | ?????????????????????????????????????????????????? | | ?????????????????????????????????????????????????? | | ?????????????????????????????????????????????????? | | ?????????????????????????????????????????????????? | | ?????????????????????????????????????????????????? | | ?????????????????????????????????????????????????? | +----------------------------------------------------+ Best States ------------- Heat Dissipation 39 Energy Generation 10 Energy Capacity 250 Matter Stores 300 Matter Capacity 300 Sight Range 16 Terrain Scan Density 10 Armor Coverage 150 Evasion (%) 44 Item Schematics ----------------- None Robot Schematics ------------------ None Fabricated ------------ Nothing Repaired ---------- Nothing Studied --------- None Alien Tech Used ----------------- None Achievements -------------- None Challenges ------------ None Game ------ Seed SlugSalvageSabre Manual? 0 Play Time 00:13:22 Cumulative 230.9 hours Start 2026.08.11 @ 17:09:24 End 2026.08.11 @ 17:20:58 Sessions 1 Manual Loads 0 Difficulty Rogue Special Mode None Game No. 284 Rogue 284 Adventurer 0 Explorer 0 Win Type - Total 6 Types 6/0/0/0/0/0/0/0/0/0 Lore% 80 Gallery% 63 Achievement% 51 Wizard Run 0 Options --------- Layout 0 ASCII 0 Keyboard 0 Movement Numpad Keybinds 0 Fullscreen 0 Font 16/Terminus Map View 76x50 Zoom Use 0% Tactical HUD 1 Map Filters NONE Filters NONE Steam 1 RUN: b425cf93-c381-453a-91c4-8dd2e83ab60d